fUSD/lending_fUSD_20250806
["ID","MTS","AMOUNT","RATE_DAILY","PERIOD"]
[377559769,1754442661951,-460.29,0.0003589,14]
[377559770,1754442661960,-400.0,0.0003589,14]
[377559771,1754442661970,-400.0,0.0003589,14]
[377559772,1754442661979,-400.0,0.0003589,14]
[377559773,1754442661988,-1864.66,0.0003589,14]
[377559774,1754442661997,-1554.97,0.0003589,14]
[377559775,1754442662007,-400.0,0.0003589,14]
[377559776,1754442662016,-2171.6,0.0003589,14]
[377559777,1754442662026,-1890.83,0.0003589,14]
[377559778,1754442662036,-1637.12,0.0003589,14]
[377559779,1754442662045,-675.89,0.0003589,14]
[377559780,1754442662054,-1931.75,0.0003589,14]
[377559781,1754442662064,-1957.27,0.0003589,14]
[377559782,1754442662073,-966.76,0.0003589,14]
[377559783,1754442662082,-400.0,0.0003589,14]
[377559784,1754442662091,-569.93,0.0003589,14]
[377559785,1754442662100,-1186.55,0.0003589,14]
[377559786,1754442662110,-1734.52,0.0003589,14]
[377559787,1754442662119,-400.0,0.0003589,14]
[377559788,1754442662128,-1966.61,0.0003589,14]
[377559789,1754442662138,-926.78,0.0003589,14]
[377559790,1754442662148,-400.0,0.0003589,14]
[377559791,1754442662158,-2127.72,0.0003589,14]
[377559792,1754442662167,-721.87,0.0003589,14]
[377559793,1754442662176,-565.93,0.0003589,14]
[377559794,1754442662186,-400.0,0.0003589,14]
[377559795,1754442662195,-400.0,0.0003589,14]
[377559796,1754442662204,-1157.08,0.0003589,14]
[377559797,1754442662216,-1299.26,0.0003589,14]
[377559798,1754442662226,-579.8,0.0003589,14]
[377559799,1754442662235,-400.0,0.0003589,14]
[377559800,1754442662245,-820.22,0.0003589,14]
[377559801,1754442662256,-400.0,0.0003589,14]
[377559802,1754442662266,-1657.04,0.0003589,14]
[377559803,1754442662276,-400.0,0.0003589,14]
[377559804,1754442662285,-1778.69,0.0003589,14]
[377559805,1754442662297,-400.0,0.0003589,14]
[377559806,1754442662308,-1516.87,0.0003589,14]
[377559807,1754442662317,-727.11,0.0003589,14]
[377559808,1754442662326,-400.0,0.0003589,14]
[377559809,1754442662336,-400.0,0.0003589,14]
[377559810,1754442662345,-400.0,0.0003589,14]
[377559811,1754442662355,-1676.54,0.0003589,14]
[377559812,1754442662365,-400.0,0.0003589,14]
[377559813,1754442662375,-1762.97,0.0003589,14]
[377559814,1754442662385,-1555.03,0.0003589,14]
[377559815,1754442662394,-2264.12,0.0003589,14]
[377559816,1754442662404,-400.0,0.0003589,14]
[377559817,1754442662415,-2031.94,0.0003589,14]
[377559818,1754442662424,-400.0,0.0003589,14]
[377559819,1754442662434,-930.41,0.0003589,14]
[377559820,1754442662443,-760.26,0.0003589,14]
[377559821,1754442662453,-400.0,0.0003589,14]
[377559822,1754442662462,-400.0,0.0003589,14]
[377559823,1754442662472,-400.0,0.0003589,14]
[377559824,1754442662483,-786.19,0.0003589,14]
[377559825,1754442662493,-406.98,0.0003589,14]
[377559826,1754442662503,-524.56,0.0003589,14]
[377559827,1754442662513,-531.32,0.0003589,14]
[377559828,1754442662523,-589.63,0.0003589,14]
[377559829,1754442662532,-1026.06,0.0003589,14]
[377559830,1754442662541,-400.0,0.0003589,14]
[377559831,1754442662551,-1144.28,0.0003589,14]
[377559832,1754442662560,-400.0,0.0003589,14]
[377559833,1754442662570,-400.0,0.0003589,14]
[377559834,1754442662580,-400.0,0.0003589,14]
[377559835,1754442662589,-400.0,0.0003589,14]
[377559836,1754442662599,-2523.61,0.0003589,14]
[377559837,1754442662609,-400.0,0.0003589,14]
[377559838,1754442662618,-400.0,0.0003589,14]
[377559839,1754442662628,-688.8,0.0003589,14]
[377559840,1754442662637,-2483.16,0.0003589,14]
[377559841,1754442662647,-400.0,0.0003589,14]
[377559842,1754442662658,-462.82165487,0.0003589,14]
[377559843,1754442662667,-1380.5,0.0003589,14]
[377559844,1754442662676,-400.0,0.0003589,14]
[377559845,1754442662686,-400.0,0.0003589,14]
[377559846,1754442662695,-1463.79,0.0003589,14]
[377559847,1754442662705,-400.0,0.0003589,14]
[377559848,1754442662714,-489.01,0.0003589,14]
[377559849,1754442662723,-400.0,0.0003589,14]
[377559850,1754442662733,-2205.35,0.0003589,14]
[377559851,1754442662742,-400.0,0.0003589,14]
[377559852,1754442662751,-2207.6,0.0003589,14]
[377559853,1754442662760,-491.72,0.0003589,14]
[377559854,1754442662770,-2085.19,0.0003589,14]
[377559855,1754442662779,-400.0,0.0003589,14]
[377559856,1754442662788,-414.28,0.0003589,14]
[377559857,1754442662798,-400.0,0.0003589,14]
[377559858,1754442662808,-400.0,0.0003589,14]
[377559859,1754442662817,-1972.25,0.0003589,14]
[377559860,1754442662827,-1215.67,0.0003589,14]
[377559861,1754442662837,-400.0,0.0003589,14]
[377559862,1754442662846,-794.93,0.0003589,14]
[377559863,1754442662855,-400.0,0.0003589,14]
[377559864,1754442662864,-480.76774997,0.0003589,14]
[377559865,1754442662873,-422.44,0.0003589,14]
[377559866,1754442662882,-463.41611909,0.0003589,2]
[377559867,1754442662891,-1015.96,0.0003589,14]
[377559868,1754442662900,-3346.64,0.0003589,14]
[377559869,1754442662911,-1312.75,0.0003589,14]
[377559870,1754442662920,-400.0,0.0003589,14]
[377559871,1754442662929,-400.0,0.0003589,14]
[377559872,1754442662938,-777.29,0.0003589,14]
[377559873,1754442662947,-1172.709491,0.0003589,14]
[377559874,1754442662956,-400.0,0.0003589,14]
[377559875,1754442662965,-400.0,0.0003589,14]
[377559876,1754442662974,-400.0,0.0003589,14]
[377559877,1754442662983,-932.98,0.0003589,14]
[377559878,1754442662993,-2888.34,0.0003589,14]
[377559879,1754442663002,-1292.66,0.0003589,14]
[377559880,1754442663011,-934.564391,0.0003589,14]
[377559881,1754442663020,-1868.41,0.0003589,14]
[377559882,1754442663029,-2405.61,0.0003589,14]
[377559883,1754442663039,-709.55,0.0003589,14]
[377559884,1754442663049,-400.0,0.0003589,14]
[377559885,1754442663058,-1269.3,0.0003589,14]
[377559886,1754442663067,-1328.676612,0.0003589,14]
[377559887,1754442663077,-1290.39,0.0003589,14]
[377559888,1754442663086,-400.0,0.0003589,14]
[377559889,1754442663096,-400.0,0.0003589,14]
[377559890,1754442663105,-400.0,0.0003589,14]
[377559891,1754442663115,-400.0,0.0003589,14]
[377559892,1754442663124,-400.0,0.0003589,14]
[377559893,1754442663133,-400.0,0.0003589,14]
[377559894,1754442663142,-400.0,0.0003589,14]
[377559895,1754442663540,-437.13,0.0003589,14]
[377559896,1754442663551,-935.04,0.0003589,14]
[377559897,1754442663561,-400.0,0.0003589,14]
[377559898,1754442663571,-1761.05,0.0003589,14]
[377559899,1754442663582,-1708.33,0.0003589,14]
[377559900,1754442663592,-400.0,0.0003589,14]
[377559901,1754442663601,-1704.71,0.0003589,14]
[377559902,1754442663611,-2290.75,0.0003589,14]
[377559903,1754442663621,-183.443369,0.0003589,14]
[377559904,1754442663630,-1762.0,0.0003589,14]
[377559905,1754442663640,-672.68,0.0003589,14]
[377559906,1754442663649,-527.32,0.0003589,14]
[377559907,1754442663659,-994.04,0.0003589,14]
[377559908,1754442663668,-400.0,0.0003589,14]
[377559909,1754442663678,-400.0,0.0003589,14]
[377559910,1754442663688,-400.0,0.0003589,14]
[377559911,1754442663698,-400.0,0.0003589,14]
[377559912,1754442663708,-400.0,0.0003589,14]
[377559913,1754442663717,-2469.75,0.0003589,14]
[377559914,1754442663728,-400.0,0.0003589,14]
[377559915,1754442663738,-150.613933,0.0003589,14]
[377559916,1754442663748,-400.0,0.0003589,14]
[377559917,1754442663759,-400.0,0.0003589,14]
[377559918,1754442663769,-400.0,0.0003589,14]
[377559919,1754442663778,-400.0,0.0003589,14]
[377559920,1754442663788,-2205.99,0.0003589,14]
[377559921,1754442663799,-400.0,0.0003589,14]
[377559922,1754442663808,-400.0,0.0003589,14]
[377559923,1754442663818,-2509.3,0.0003589,14]
[377559924,1754442663828,-779.79,0.0003589,14]
[377559925,1754442663838,-400.0,0.0003589,14]
[377559926,1754442663848,-1057.03,0.0003589,14]
[377559927,1754442663857,-400.0,0.0003589,14]
[377559928,1754442663867,-1461.09,0.0003589,14]
[377559929,1754442663877,-2247.66,0.0003589,14]
[377559930,1754442663887,-400.0,0.0003589,14]
[377559931,1754442663896,-1264.35,0.0003589,14]
[377559932,1754442663906,-400.0,0.0003589,14]
[377559933,1754442663916,-579.3,0.0003589,14]
[377559934,1754442663926,-430.86,0.0003589,14]
[377559935,1754442663936,-2543.8,0.0003589,14]
[377559936,1754442663945,-927.28,0.0003589,14]
[377559937,1754442663955,-2035.35,0.0003589,14]
[377559938,1754442663965,-400.0,0.0003589,14]
[377559939,1754442663974,-1617.19,0.0003589,14]
[377559940,1754442663984,-400.0,0.0003589,14]
[377559941,1754442663994,-400.0,0.0003589,14]
[377559942,1754442664005,-2035.44,0.0003589,14]
[377559943,1754442664015,-400.0,0.0003589,14]
[377559944,1754442664026,-400.0,0.0003589,14]
[377559945,1754442664036,-742.22,0.0003589,14]
[377559946,1754442664046,-1576.22,0.0003589,14]
[377559947,1754442664056,-1564.14,0.0003589,14]
[377559948,1754442664065,-400.0,0.0003589,14]
[377559949,1754442664075,-1123.31,0.0003589,14]
[377559950,1754442664085,-423.59,0.0003589,14]
[377559951,1754442664094,-678.6,0.0003589,14]
[377559952,1754442664104,-1765.72,0.0003589,14]
[377559953,1754442664114,-1488.56,0.0003589,14]
[377559954,1754442664123,-1011.21,0.0003589,14]
[377559955,1754442664133,-1388.38,0.0003589,14]
[377559956,1754442664143,-523.37,0.0003589,14]
[377559957,1754442664152,-400.0,0.0003589,14]
[377559958,1754442664163,-400.0,0.0003589,14]
[377559959,1754442664173,-409.96,0.0003589,14]
[377559960,1754442664183,-3679.84,0.0003589,14]
[377559961,1754442664193,-1713.82,0.0003589,14]
[377559962,1754442664203,-1711.85,0.0003589,14]
[377559963,1754442664213,-1839.78,0.0003589,14]
[377559964,1754442664227,-2131.4,0.0003589,14]
[377559965,1754442664237,-790.57,0.0003589,14]
[377559966,1754442664247,-1776.87,0.0003589,14]
[377559967,1754442664258,-400.0,0.0003589,14]
[377559968,1754442664268,-1649.7,0.0003589,14]
[377559969,1754442664278,-1115.45,0.0003589,14]
[377559970,1754442664288,-400.0,0.0003589,14]
[377559971,1754442664298,-705.6,0.0003589,14]
[377559972,1754442664307,-963.25,0.0003589,14]
[377559973,1754442664317,-400.0,0.0003589,14]
[377559974,1754442664328,-2393.93,0.0003589,14]
[377559975,1754442664338,-496.79,0.0003589,14]
[377559976,1754442664348,-400.0,0.0003589,14]
[377559977,1754442664358,-724.03,0.0003589,14]
[377559978,1754442664367,-2090.88,0.0003589,14]
[377559979,1754442664377,-497.84,0.0003589,14]
[377559980,1754442664388,-400.0,0.0003589,14]
[377559981,1754442664397,-400.0,0.0003589,14]
[377559982,1754442664407,-1967.34,0.0003589,14]
[377559983,1754442664417,-797.29,0.0003589,14]
[377559984,1754442664426,-400.0,0.0003589,14]
[377559985,1754442664436,-400.0,0.0003589,14]
[377559986,1754442664445,-400.0,0.0003589,14]
[377559987,1754442664455,-400.0,0.0003589,14]
[377559988,1754442664465,-534.96,0.0003589,14]
[377559989,1754442664474,-400.0,0.0003589,14]
[377559990,1754442664484,-602.25,0.0003589,14]
[377559991,1754442664493,-2237.67,0.0003589,14]
[377559992,1754442664503,-1943.05,0.0003589,14]
[377559993,1754442664514,-400.0,0.0003589,14]
[377559994,1754442664523,-400.0,0.0003589,14]
[377559995,1754442664533,-1777.23,0.0003589,14]
[377559996,1754442664543,-525.4,0.0003589,14]
[377559997,1754442664554,-400.0,0.0003589,14]
[377559998,1754442664563,-400.0,0.0003589,14]
[377559999,1754442664574,-400.0,0.0003589,14]
[377560000,1754442664584,-400.0,0.0003589,14]
[377560001,1754442664594,-400.0,0.0003589,14]
[377560002,1754442664604,-1704.16,0.0003589,14]
[377560003,1754442664613,-755.14,0.0003589,14]
[377560004,1754442664623,-458.11,0.0003589,14]
[377560005,1754442664632,-1361.3,0.0003589,14]
[377560006,1754442664642,-1657.6,0.0003589,14]
[377560007,1754442664651,-400.0,0.0003589,14]
[377560008,1754442664661,-400.0,0.0003589,14]
[377560009,1754442664670,-464.59,0.0003589,14]
[377560010,1754442664680,-400.0,0.0003589,14]
[377560011,1754442664688,-1359.03,0.0003589,14]
[377560012,1754442664697,-928.51,0.0003589,14]
[377560013,1754442664707,-400.0,0.0003589,14]
[377560014,1754442664717,-447.16,0.0003589,14]
[377560015,1754442664726,-400.0,0.0003589,14]
[377560016,1754442664735,-935.48,0.0003589,14]
[377560017,1754442664744,-400.0,0.0003589,14]
[377560018,1754442664754,-433.96,0.0003589,14]
[377560019,1754442664763,-1737.65,0.0003589,14]
[377560020,1754442664772,-475.44,0.0003589,14]
[377560021,1754442664782,-964.89,0.0003589,14]
[377560022,1754442664791,-2309.93,0.0003589,14]
[377560023,1754442664801,-400.0,0.0003589,14]
[377560024,1754442664810,-2063.67,0.0003589,14]
[377560025,1754442664819,-1013.66,0.0003589,14]
[377560026,1754442664829,-1126.47,0.0003589,14]
[377560027,1754442664838,-984.53,0.0003589,14]
[377560028,1754442664847,-1638.91,0.0003589,14]
[377560029,1754442664856,-400.0,0.0003589,14]
[377560030,1754442664865,-1466.99,0.0003589,14]
[377560031,1754442664875,-1286.0,0.0003589,14]
[377560032,1754442664885,-400.0,0.0003589,14]
[377560033,1754442664894,-857.1,0.0003589,14]
[377560034,1754442664903,-1077.2,0.0003589,14]
[377560035,1754442664914,-962.77,0.0003589,14]
[377560036,1754442664923,-400.0,0.0003589,14]
[377560037,1754442664932,-400.0,0.0003589,14]
[377560038,1754442664942,-1979.59,0.0003589,14]
[377560039,1754442664952,-1044.87,0.0003589,14]
[377560040,1754442664961,-939.42,0.0003589,14]
[377560041,1754442664971,-1728.26,0.0003589,14]
[377560042,1754442664980,-400.0,0.0003589,14]
[377560043,1754442664989,-1020.28,0.0003589,14]
[377560044,1754442664998,-832.44,0.0003589,14]
[377560045,1754442665008,-1048.15,0.0003589,14]
[377560046,1754442665017,-1132.04,0.0003589,14]
[377560047,1754442665026,-400.0,0.0003589,14]
[377560048,1754442665036,-400.0,0.0003589,14]
[377560049,1754442665046,-1666.74,0.0003589,14]
[377560050,1754442665055,-668.93,0.0003589,14]
[377560051,1754442665064,-923.76,0.0003589,14]
[377560052,1754442665074,-457.75,0.0003589,14]
[377560053,1754442665083,-2214.94,0.0003589,14]
[377560054,1754442665093,-400.0,0.0003589,14]
[377560055,1754442665102,-2316.2,0.0003589,14]
[377560056,1754442665112,-728.39,0.0003589,14]
[377560057,1754442665121,-400.0,0.0003589,14]
[377560058,1754442665131,-1498.11,0.0003589,14]
[377560059,1754442665140,-400.0,0.0003589,14]
[377560060,1754442665149,-1040.17,0.0003589,14]
[377560061,1754442665159,-400.0,0.0003589,14]
[377560062,1754442665169,-484.60131439,0.0003589,14]
[377560063,1754442665179,-2864.39,0.0003589,14]
[377560064,1754442665188,-400.0,0.0003589,14]
[377560065,1754442665197,-1180.49,0.0003589,14]
[377560066,1754442665206,-400.0,0.0003589,14]
[377560067,1754442665218,-1311.83,0.0003589,14]
[377560068,1754442665228,-1834.0,0.0003589,14]
[377560069,1754442665237,-400.0,0.0003589,14]
[377560070,1754442665246,-1955.23,0.0003589,14]
[377560071,1754442665255,-538.12,0.0003589,14]
[377560072,1754442665265,-400.0,0.0003589,14]
[377560073,1754442665274,-1244.43,0.0003589,14]
[377560074,1754442665284,-400.0,0.0003589,14]
[377560075,1754442665294,-1662.24,0.0003589,14]
[377560076,1754442665303,-500.0,0.0003589,14]
[377560077,1754442665312,-184.19862309,0.0003589,14]
[377560078,1754442665322,-953.1,0.0003589,14]
[377560079,1754442665332,-657.65,0.0003589,14]
[377560080,1754442665341,-815.87,0.0003589,14]
[377560081,1754442665351,-462.59497048,0.0003589,14]
[377560082,1754442665360,-400.0,0.0003589,14]
[377560083,1754442665370,-400.0,0.0003589,14]
[377560084,1754442665380,-563.55,0.0003589,14]
[377560085,1754442665389,-400.0,0.0003589,14]
[377560086,1754442665399,-1102.55,0.0003589,14]
[377560087,1754442665409,-400.0,0.0003589,14]
[377560088,1754442665419,-914.6,0.0003589,14]
[377560089,1754442665429,-400.0,0.0003589,14]
[377560090,1754442665439,-1700.2,0.0003589,14]
[377560091,1754442665448,-400.0,0.0003589,14]
[377560092,1754442665458,-525.87,0.0003589,14]
[377560093,1754442665467,-400.0,0.0003589,14]
[377560094,1754442665477,-1677.48,0.0003589,14]
[377560095,1754442665487,-615.99,0.0003589,14]
[377560096,1754442665497,-1122.22,0.0003589,14]
[377560097,1754442665506,-1673.07,0.0003589,14]
[377560098,1754442665515,-400.0,0.0003589,14]
[377560099,1754442665525,-1339.53,0.0003589,14]
[377560100,1754442665534,-691.75,0.0003589,14]
[377560101,1754442665543,-3039.76,0.0003589,14]
[377560102,1754442665553,-400.0,0.0003589,14]
[377560103,1754442665563,-1742.18,0.0003589,14]
[377560104,1754442665572,-400.0,0.0003589,14]
[377560105,1754442665582,-3124.83,0.0003589,14]
[377560106,1754442665592,-2935.07,0.0003589,14]
[377560107,1754442665601,-400.0,0.0003589,14]
[377560108,1754442665611,-400.0,0.0003589,14]
[377560109,1754442665620,-400.0,0.0003589,14]
[377560110,1754442665630,-400.0,0.0003589,14]
[377560111,1754442665640,-1838.67,0.0003589,14]
[377560112,1754442665649,-609.9,0.0003589,14]
[377560113,1754442665659,-400.0,0.0003589,14]
[377560114,1754442665669,-400.0,0.0003589,14]
[377560115,1754442665678,-991.95,0.0003589,14]
[377560116,1754442665687,-1655.86,0.0003589,14]
[377560117,1754442665696,-3327.96,0.0003589,14]
[377560118,1754442665705,-400.0,0.0003589,14]
[377560119,1754442665714,-2954.23,0.0003589,14]
[377560120,1754442665723,-1352.76,0.0003589,14]
[377560121,1754442665732,-400.0,0.0003589,14]
[377560122,1754442665742,-566.14,0.0003589,14]
[377560123,1754442665751,-686.21,0.0003589,14]
[377560124,1754442665761,-400.0,0.0003589,14]
[377560125,1754442665770,-1748.91,0.0003589,14]
[377560126,1754442665780,-438.37,0.0003589,14]
[377560127,1754442665789,-2547.69,0.0003589,14]
[377560128,1754442665798,-400.0,0.0003589,14]
[377560129,1754442665807,-3490.04,0.0003589,14]
[377560130,1754442665817,-1448.31,0.0003589,14]
[377560131,1754442665826,-358.70963883,0.0003589,14]
[377560132,1754442665835,-400.0,0.0003589,14]
[377560133,1754442665844,-400.0,0.0003589,14]
[377560134,1754442665853,-1267.64,0.0003589,14]
[377560135,1754442665862,-400.0,0.0003589,14]
[377560136,1754442665871,-400.0,0.0003589,14]
[377560137,1754442665884,-400.0,0.0003589,14]
[377560138,1754442665894,-1802.79,0.0003589,14]
[377560139,1754442665903,-784.29,0.0003589,14]
[377560140,1754442665915,-400.0,0.0003589,14]
[377560141,1754442665924,-400.0,0.0003589,14]
[377560142,1754442665933,-1837.22,0.0003589,14]
[377560143,1754442665944,-400.0,0.0003589,14]
[377560144,1754442665953,-400.0,0.0003589,14]
[377560145,1754442665962,-634.12,0.0003589,14]
[377560146,1754442665972,-4030.7,0.0003589,14]
[377560147,1754442665981,-3271.39,0.0003589,14]
[377560148,1754442665990,-423.14,0.0003589,14]
[377560149,1754442665999,-1431.01,0.0003589,14]
[377560150,1754442666009,-1890.7,0.0003589,14]
[377560151,1754442666018,-400.0,0.0003589,14]
[377560152,1754442666027,-518.39,0.0003589,14]
[377560153,1754442666036,-2300.35,0.0003589,14]
[377560154,1754442666046,-799.06,0.0003589,14]
[377560155,1754442666055,-1061.15,0.0003589,14]
[377560156,1754442666063,-400.0,0.0003589,14]
[377560157,1754442666073,-1973.9,0.0003589,14]
[377560158,1754442666082,-414.66,0.0003589,14]
[377560159,1754442666091,-2403.69,0.0003589,14]
[377560160,1754442666101,-649.25,0.0003589,14]
[377560161,1754442666111,-400.0,0.0003589,14]
[377560162,1754442666119,-400.0,0.0003589,14]
[377560163,1754442666129,-400.0,0.0003589,14]
[377560164,1754442666138,-1824.64,0.0003589,14]
[377560165,1754442666147,-1727.1,0.0003589,14]
[377560166,1754442666157,-1000.4,0.0003589,14]
[377560167,1754442666168,-1599.77,0.0003589,14]
[377560168,1754442666177,-400.0,0.0003589,14]
[377560169,1754442666186,-1861.93,0.0003589,14]
[377560170,1754442666195,-400.0,0.0003589,14]
[377560171,1754442666204,-1144.07,0.0003589,14]
[377560172,1754442666215,-1695.92,0.0003589,14]
[377560173,1754442666227,-4450.65,0.0003589,14]
[377560174,1754442666235,-400.0,0.0003589,14]
[377560175,1754442666244,-1706.8,0.0003589,14]
[377560176,1754442666254,-1430.5,0.0003589,14]
[377560177,1754442666263,-932.87,0.0003589,14]
[377560178,1754442666272,-779.66,0.0003589,14]
[377560179,1754442666281,-400.0,0.0003589,14]
[377560180,1754442666291,-951.39,0.0003589,14]
[377560181,1754442666300,-421.9,0.0003589,14]
[377560182,1754442666311,-2337.94,0.0003589,14]
[377560183,1754442666320,-400.0,0.0003589,14]
[377560184,1754442666329,-400.0,0.0003589,14]
[377560185,1754442666339,-400.0,0.0003589,14]
[377560186,1754442666347,-589.79,0.0003589,14]
[377560187,1754442666357,-2493.45,0.0003589,14]
[377560188,1754442666366,-1533.82,0.0003589,14]
[377560189,1754442666375,-2218.99,0.0003589,14]
[377560190,1754442666384,-400.0,0.0003589,14]
[377560191,1754442666394,-400.0,0.0003589,14]
[377560192,1754442666404,-2089.35,0.0003589,14]
[377560193,1754442666415,-841.47,0.0003589,14]
[377560194,1754442666424,-400.0,0.0003589,7]
[377560195,1754442666433,-868.89,0.0003589,14]
[377560196,1754442666442,-461.62091488,0.0003589,14]
[377560197,1754442666452,-895.39,0.0003589,14]
[377560198,1754442666461,-3396.05,0.0003589,14]
[377560199,1754442666470,-400.0,0.0003589,14]
[377560200,1754442666480,-1716.54,0.0003589,14]
[377560201,1754442666489,-400.0,0.0003589,14]
[377560202,1754442666498,-400.0,0.0003589,14]
[377560203,1754442666507,-1340.56,0.0003589,14]
[377560204,1754442666517,-400.0,0.0003589,14]
[377560205,1754442666526,-400.0,0.0003589,14]
[377560206,1754442666535,-400.0,0.0003589,14]
[377560207,1754442666544,-161.21694893,0.0003589,14]
[377560208,1754442666553,-1353.01,0.0003589,14]
[377560209,1754442666564,-195.5029758,0.0003589,14]
[377560210,1754442666573,-1603.32,0.0003589,14]
[377560211,1754442666582,-2656.29,0.0003589,14]
[377560212,1754442666592,-2276.37,0.0003589,14]
[377560213,1754442666602,-400.0,0.0003589,14]
[377560214,1754442666610,-583.8,0.0003589,14]
[377560215,1754442666619,-1428.62,0.0003589,14]
[377560216,1754442666628,-772.55,0.0003589,14]
[377560217,1754442666638,-1629.04,0.0003589,14]
[377560218,1754442666647,-2751.15,0.0003589,14]
[377560219,1754442666656,-878.31,0.0003589,14]
[377560220,1754442666667,-400.0,0.0003589,14]
[377560221,1754442666676,-1325.14,0.0003589,14]
[377560222,1754442666685,-400.0,0.0003589,14]
[377560223,1754442666694,-1622.11,0.0003589,14]
[377560224,1754442666704,-1723.73,0.0003589,14]
[377560225,1754442666714,-444.96,0.0003589,14]
[377560226,1754442666723,-1723.73,0.0003589,14]
[377560227,1754442666732,-690.57,0.0003589,14]
[377560228,1754442666741,-5774.11,0.0003589,14]
[377560229,1754442666750,-1725.28,0.0003589,14]
[377560230,1754442666759,-2273.8,0.0003589,14]
[377560231,1754442666768,-400.0,0.0003589,14]
[377560232,1754442666777,-1180.48,0.0003589,14]
[377560233,1754442666786,-1303.85,0.0003589,14]
[377560234,1754442666795,-2418.19,0.0003589,14]
[377560235,1754442666804,-1418.71,0.0003589,14]
[377560236,1754442666814,-1589.73,0.0003589,14]
[377560237,1754442666823,-1483.39,0.0003589,14]
[377560238,1754442666833,-400.0,0.0003589,14]
[377560239,1754442666842,-1498.57,0.0003589,14]
[377560240,1754442666851,-400.0,0.0003589,14]
[377560241,1754442666861,-400.0,0.0003589,14]
[377560242,1754442666870,-821.53,0.0003589,14]
[377560243,1754442666879,-1287.81,0.0003589,14]
[377560244,1754442666889,-1703.45,0.0003589,14]
[377560245,1754442666899,-1983.78,0.0003589,14]
[377560246,1754442666910,-1679.65,0.0003589,14]
[377560247,1754442666919,-400.0,0.0003589,14]
[377560248,1754442666929,-3157.63,0.0003589,14]
[377560249,1754442666938,-1609.66,0.0003589,14]
[377560250,1754442666947,-687.98,0.0003589,14]
[377560251,1754442666957,-2415.95,0.0003589,14]
[377560252,1754442666966,-2307.34,0.0003589,14]
[377560253,1754442666977,-400.0,0.0003589,14]
[377560254,1754442666990,-2679.13,0.0003589,14]
[377560255,1754442667005,-3177.96,0.0003589,14]
[377560256,1754442667017,-400.0,0.0003589,14]
[377560257,1754442667030,-747.81,0.0003589,14]
[377560258,1754442667043,-1953.14,0.0003589,14]
[377560259,1754442667056,-400.0,0.0003589,14]
[377560260,1754442667071,-404.81,0.0003589,14]
[377560261,1754442667085,-428.72,0.0003589,14]
[377560262,1754442667099,-1927.57,0.0003589,14]
[377560263,1754442667111,-697.32,0.0003589,14]
[377560264,1754442667122,-400.0,0.0003589,14]
[377560265,1754442667135,-400.0,0.0003589,14]
[377560266,1754442667149,-555.16,0.0003589,14]
[377560267,1754442667164,-1949.72,0.0003589,14]
[377560268,1754442667178,-1541.25,0.0003589,14]